bitfinex-derivatives/quotes_SOLF0:USTF0_20240827
["timestamp","ask_amount","ask_price","bid_price","bid_amount"]
[1724730052130,3.158,158.3,158.28,3.09616231]
[1724730052335,3.158,158.3,158.27,3.20601558]
[1724730052633,3.158,158.3,158.28,3.09612709]
[1724730052834,3.158,158.3,158.27,3.20601558]
[1724730053230,3.20520796,158.31,158.28,3.09612612]
[1724730053431,3.20520796,158.31,158.27,3.20601558]
[1724730053630,3.20520796,158.31,158.28,3.1582]
[1724730055338,0.04750796,158.31,158.28,3.1582]
[1724730055543,0.04750796,158.31,158.29,14.04409639]
[1724730055833,0.04750796,158.31,158.3,3.09550478]
[1724730056335,0.04750796,158.31,158.29,10.948]
[1724730056533,0.04750796,158.31,158.3,3.09556506]
[1724730059739,0.04750796,158.31,158.29,10.948]
[1724730060037,0.04750796,158.31,158.3,3.09552527]
[1724730060633,0.04750796,158.31,158.3,8.27443346]
[1724730060843,0.04750796,158.31,158.3,14.04332527]
[1724730061034,0.04750796,158.31,158.3,12.96889629]
[1724730061228,0.04750796,158.31,158.3,16.06419227]
[1724730062041,0.04750796,158.31,158.3,5.11639227]
[1724730062237,0.04750796,158.31,158.3,3.09543435]
[1724730062435,0.04750796,158.31,158.27,7.83761558]
[1724730062837,0.04750796,158.31,158.28,5.11726748]
[1724730063037,0.04750796,158.31,158.29,3.09590944]
[1724730063339,3.20510796,158.31,158.3,3.09590944]
[1724730063542,0.04750796,158.31,158.3,3.09590944]
[1724730066549,3.20510796,158.31,158.3,3.09590944]
[1724730068342,3.20510796,158.31,158.3,17.26899298]
[1724730068343,0.04750796,158.31,158.3,17.26899298]
[1724730068541,1.2828,158.38,158.3,12.90686622]
[1724730068739,1.2828,158.38,158.33,7.79]
[1724730069140,3.1567,158.36,158.33,7.79]
[1724730069537,3.19794106,158.36,158.33,7.83515474]
[1724730070336,0.04124106,158.36,158.33,10.99235474]
[1724730073645,0.04124106,158.36,158.35,7.79]
[1724730074449,0.04124106,158.36,158.35,10.9468]
[1724730085955,1.312,158.43,158.38,3.1562]
[1724730086157,1.312,158.43,158.39,7.79]
[1724730087055,3.1556,158.42,158.39,7.83372595]
[1724730088459,1.35865577,158.43,158.39,0.04372595]
[1724730088665,7.79,158.41,158.39,0.04372595]
[1724730089349,3.1558,158.4,158.39,0.04372595]
[1724730092266,3.1557,158.41,158.39,0.04372595]
[1724730098572,3.1558,158.4,158.39,0.04372595]
[1724730102670,1.35865577,158.43,158.33,7.79]
[1724730102671,3.1563,158.38,158.33,7.79]
[1724730102869,10.93284187,158.39,158.33,7.79]
[1724730103076,7.79,158.38,158.32,7.79]
[1724730103272,3.16462332,158.37,158.32,7.79]
[1724730103673,0.04512137,158.36,158.33,0.04503947]
[1724730104273,3.20192137,158.36,158.33,3.20223947]
[1724730105878,0.04512137,158.36,158.34,3.157]
[1724730106468,0.04512137,158.36,158.35,7.79]
[1724730106769,0.04512137,158.36,158.35,10.9468]
[1724730110382,0.04512137,158.36,158.33,0.04503947]
[1724730110977,0.04512137,158.36,158.34,3.157]
[1724730115682,0.04512137,158.36,158.33,10.99203947]
[1724730115882,3.20172137,158.36,158.33,10.99203947]
[1724730121286,1.211,158.46,158.35,7.79]
[1724730121581,7.79,158.45,158.38,7.79]
[1724730121788,10.9959525,158.45,158.38,7.79]
[1724730121983,7.79,158.43,158.36,10.9464]
[1724730122178,0.04476587,158.41,158.38,0.04584154]
[1724730123490,3.20056587,158.41,158.38,0.04584154]
[1724730131492,3.1558,158.4,158.38,0.04584154]
[1724730137196,7.79,158.4,158.38,0.04584154]
[1724730137493,3.1566,158.36,158.32,3.1573]
[1724730137694,3.1566,158.36,158.33,3.09360557]
[1724730137897,3.1566,158.36,158.32,3.1573]
[1724730138086,7.79,158.35,158.31,3.1576]
[1724730138288,7.79,158.35,158.32,3.09392859]
[1724730138289,7.83766727,158.35,158.32,3.09392859]
[1724730138591,3.157,158.34,158.31,0.04623044]
[1724730138798,3.157,158.34,158.32,3.09476236]
[1724730138995,3.157,158.34,158.31,0.04623044]
[1724730139195,7.83766727,158.35,158.31,0.04623044]
[1724730139196,10.99466727,158.35,158.31,3.20383044]
[1724730146310,0.04766727,158.35,158.32,3.1574]
[1724730146610,0.04766727,158.35,158.32,10.9474]
[1724730148712,0.04766727,158.35,158.34,3.157]
[1724730155318,0.04766727,158.35,158.34,6.2504359]
[1724730158217,0.04766727,158.35,158.34,3.157]
[1724730158416,0.04766727,158.35,158.34,6.25038905]
[1724730161618,0.04766727,158.35,158.34,3.157]
[1724730161820,0.04766727,158.35,158.34,6.25090166]
[1724730162019,0.04766727,158.35,158.34,3.157]
[1724730162225,0.04766727,158.35,158.34,6.25089956]
[1724730164817,0.04766727,158.35,158.34,3.157]
[1724730165119,0.04766727,158.35,158.34,6.25084006]
[1724730169318,0.04766727,158.35,158.34,3.157]
[1724730169628,0.04766727,158.35,158.34,6.25097202]
[1724730171535,0.04766727,158.35,158.34,3.09397202]
[1724730171717,0.04766727,158.35,158.32,2.02061553]
[1724730172021,0.04766727,158.35,158.31,3.20373044]
[1724730172022,10.99466727,158.35,158.31,3.20373044]
[1724730173525,3.157,158.34,158.31,3.20373044]
[1724730173823,3.157,158.34,158.31,0.04623044]
[1724730174727,3.1571,158.34,158.31,0.04623044]
[1724730176427,3.20456727,158.35,158.31,3.20383044]
[1724730177426,3.20456727,158.35,158.33,7.79]
[1724730177628,3.20456727,158.35,158.31,10.99383044]
[1724730181525,0.04766727,158.35,158.31,7.83623044]
[1724730181723,0.04766727,158.35,158.32,7.79]
[1724730183433,0.04766727,158.35,158.33,3.157]
[1724730185330,0.04766727,158.35,158.34,10.947]
[1724730185535,6.3956,158.43,158.34,10.88420077]
[1724730185737,6.3956,158.43,158.37,7.79]
[1724730186433,2.5956,158.43,158.37,7.79]
[1724730186736,0.04525179,158.42,158.38,0.04315971]
[1724730186930,3.1557,158.41,158.38,0.04315971]
[1724730188131,3.1558,158.4,158.38,0.04315971]
[1724730194331,7.83525179,158.42,158.38,0.04315971]
[1724730195339,3.1559,158.4,158.38,0.04315971]
[1724730198334,3.1559,158.39,158.38,0.04315971]
[1724730198538,10.9459,158.39,158.38,0.04315971]
[1724730198932,3.1562,158.38,158.35,3.1567]
[1724730199641,3.156,158.39,158.36,3.1565]
[1724730199836,3.19659041,158.39,158.36,3.19750009]
[1724730216843,0.04059041,158.39,158.36,0.04100009]
[1724730217345,3.19659041,158.39,158.36,3.19740009]
[1724730217547,0.04059041,158.39,158.37,7.79]
[1724730220447,0.04059041,158.39,158.36,3.19740009]
[1724730220651,3.19649041,158.39,158.36,10.98740009]
[1724730220858,3.19649041,158.39,158.37,3.09337671]
[1724730221061,3.19649041,158.39,158.36,10.98740009]
[1724730221950,3.19649041,158.39,158.36,7.83100009]
[1724730222255,3.1562,158.38,158.36,0.04100009]
[1724730223852,10.95419096,158.37,158.26,59.26012383]
[1724730224047,7.79,158.33,158.3,3.09448928]
[1724730224457,3.1577,158.31,158.27,2.02123453]
[1724730224660,3.1577,158.31,158.28,2.02123453]
[1724730224854,3.1577,158.31,158.28,3.09562092]
[1724730225058,3.20303234,158.31,158.28,0.04285444]
[1724730225358,3.1578,158.3,158.28,0.04285444]
[1724730226261,3.1579,158.29,158.28,0.04285444]
[1724730226558,7.79,158.29,158.22,11.59]
[1724730226763,3.1583,158.28,158.23,8.27709629]
[1724730226954,3.1583,158.28,158.24,5.11809629]
[1724730227157,3.1583,158.28,158.24,7.79]
[1724730227355,3.1583,158.28,158.25,3.09649307]
[1724730227657,3.20518574,158.28,158.25,0.0434668]
[1724730227860,3.20518574,158.28,158.25,3.13986196]
[1724730228364,3.20518574,158.28,158.25,0.0434668]
[1724730230054,0.04688574,158.28,158.26,7.79]
[1724730232763,3.20498574,158.28,158.25,0.0434668]
[1724730236372,3.1583,158.27,158.25,0.0434668]
[1724730239070,3.1585,158.26,158.25,0.0434668]
[1724730239363,7.79,158.27,158.16,2.4314]
[1724730239573,3.1593,158.22,158.19,3.09738289]
[1724730239769,3.1593,158.22,158.18,69.28122143]
[1724730240065,3.1593,158.22,158.18,72.44122143]
[1724730240461,0.04098189,158.22,158.19,7.79]
[1724730241970,0.04098189,158.22,158.2,7.79]
[1724730242163,0.04098189,158.22,158.2,10.9496]
[1724730242465,0.04098189,158.22,158.2,7.79]
[1724730243364,0.04098189,158.22,158.21,3.1595]
[1724730255471,0.04098189,158.22,158.2,3.1597]
[1724730256175,0.04098189,158.22,158.19,3.1599]
[1724730256371,0.04098189,158.22,158.18,61.53193785]
[1724730256676,3.20048189,158.22,158.18,64.69193785]
[1724730257975,3.1595,158.21,158.18,64.69193785]
[1724730259379,3.1599,158.19,158.18,0.04071642]
[1724730268790,7.79,158.2,158.18,0.04071642]
[1724730269090,3.1598,158.2,158.18,0.04071642]
[1724730279799,0.04098189,158.22,158.18,0.04071642]
[1724730280005,7.83098189,158.22,158.18,0.04071642]
[1724730281412,10.99038189,158.22,158.18,3.20071642]
[1724730285817,3.1596,158.21,158.18,3.20071642]
[1724730286218,3.1596,158.21,158.18,0.04071642]
[1724730298423,3.1596,158.21,158.18,3.20081642]
[1724730300429,0.04098189,158.22,158.2,3.1595]
[1724730301920,0.04098189,158.22,158.18,7.83071642]
[1724730302121,0.04098189,158.22,158.21,10.9495]
[1724730302520,0.04098189,158.22,158.21,3.1595]
[1724730302929,0.04098189,158.22,158.2,10.9497]
[1724730303428,0.04098189,158.22,158.2,7.79]
[1724730304337,0.04098189,158.22,158.21,3.1595]
[1724730305431,0.04098189,158.22,158.21,10.9495]
[1724730306237,0.04098189,158.22,158.21,14.04407276]
[1724730306536,0.04098189,158.22,158.21,10.9495]
[1724730306932,0.04098189,158.22,158.21,14.04383819]
[1724730309243,0.04098189,158.22,158.21,6.25383819]
[1724730309539,0.04098189,158.22,158.21,14.04383819]
[1724730314036,0.04098189,158.22,158.21,14.04391028]
[1724730317444,0.04098189,158.22,158.21,10.9495]
[1724730317647,0.04098189,158.22,158.21,14.04329949]
[1724730320843,0.04098189,158.22,158.21,3.1595]
[1724730324248,0.04098189,158.22,158.18,0.04071642]
[1724730324444,0.04098189,158.22,158.18,3.84071642]
[1724730325348,3.20038189,158.22,158.18,7.00071642]
[1724730326154,0.04098189,158.22,158.19,3.1599]
[1724730329353,0.04098189,158.22,158.18,7.83071642]
[1724730330355,0.04098189,158.22,158.19,3.1599]
[1724730331852,0.04098189,158.22,158.18,3.20071642]
[1724730337150,0.04098189,158.22,158.19,10.9499]
[1724730338649,0.04098189,158.22,158.18,0.04071642]
[1724730338650,0.04098189,158.22,158.2,10.9497]
[1724730339853,0.04098189,158.22,158.21,3.1595]
[1724730340158,0.04098189,158.22,158.21,6.24846901]
[1724730340754,1.2965,158.29,158.25,3.1587]
[1724730340955,4.4546,158.29,158.25,7.79]
[1724730341851,4.50246435,158.29,158.25,7.83626683]
[1724730342752,1.34436435,158.29,158.25,10.99496683]
[1724730344359,4.50226435,158.29,158.25,10.99496683]
[1724730346558,4.50226435,158.29,158.28,7.79]
[1724730346559,0.04786435,158.29,158.28,7.79]
[1724730346764,0.04786435,158.29,158.28,60.69230356]
[1724730347061,4.4504,158.35,158.28,71.56663569]
[1724730347260,1.2936,158.35,158.32,7.79]
[1724730347466,3.8,158.38,158.32,7.79]
[1724730347661,3.1565,158.37,158.32,7.79]
[1724730347963,0.04421017,158.36,158.33,0.04767849]
[1724730348164,3.1569,158.34,158.33,0.04767849]
[1724730348369,0.04421017,158.36,158.33,0.04767849]
[1724730349864,3.20071017,158.36,158.33,0.04767849]
[1724730350257,0.04421017,158.36,158.33,0.04767849]
[1724730351566,3.20081017,158.36,158.33,0.04767849]
[1724730352355,0.04421017,158.36,158.33,0.04767849]
[1724730353463,3.20081017,158.36,158.33,0.04767849]
[1724730355166,0.04421017,158.36,158.33,7.83767849]
[1724730355369,0.04421017,158.36,158.35,7.79]
[1724730358867,0.04421017,158.36,158.33,0.04767849]
[1724730359669,3.20091017,158.36,158.33,0.04767849]
[1724730359969,0.04421017,158.36,158.33,7.83767849]
[1724730360864,0.04421017,158.36,158.34,7.79]
[1724730362467,0.04421017,158.36,158.33,0.04767849]
[1724730362670,0.04421017,158.36,158.35,7.79]
[1724730368180,0.04421017,158.36,158.35,10.9467]
[1724730368570,0.04421017,158.36,158.35,3.1567]
[1724730368771,0.04421017,158.36,158.35,10.9467]
[1724730369072,46.42707848,158.43,158.36,3.1564]
[1724730369073,1.3223,158.43,158.36,3.1564]
[1724730369273,3.1556,158.41,158.39,7.79]
[1724730369674,1.3223,158.43,158.39,7.79]
[1724730369974,4.52113424,158.43,158.42,7.79]
[1724730370892,1.36593424,158.43,158.42,7.79]
[1724730371476,1.36593424,158.43,158.39,0.04412509]
[1724730371675,1.36593424,158.43,158.4,7.79]
[1724730371879,1.36593424,158.43,158.39,0.04412509]
[1724730372074,3.1557,158.4,158.39,0.04412509]
[1724730372274,9.15593424,158.43,158.39,0.04412509]
[1724730373982,7.79,158.42,158.39,0.04412509]
[1724730374190,3.1557,158.4,158.39,0.04412509]
[1724730374880,7.79,158.4,158.33,11.57]
[1724730375874,3.1967031,158.38,158.35,0.0444423]
[1724730378683,3.1563,158.37,158.35,0.0444423]
[1724730380085,0.0406031,158.38,158.35,0.0444423]
[1724730380984,3.1565,158.36,158.35,0.0444423]
[1724730381391,0.0406031,158.38,158.35,0.0444423]
[1724730381392,3.1564,158.37,158.35,0.0444423]
[1724730381782,0.0406031,158.38,158.35,0.0444423]
[1724730382182,3.1969031,158.38,158.35,0.0444423]
[1724730382785,0.0406031,158.38,158.35,0.0444423]
[1724730383894,3.1563,158.37,158.35,7.8344423]
[1724730386692,3.1565,158.36,158.35,0.0444423]
[1724730389692,3.1564,158.37,158.35,0.0444423]
[1724730394693,0.0406031,158.38,158.36,7.79]
[1724730394896,0.0406031,158.38,158.37,7.79]
[1724730395904,0.0406031,158.38,158.37,10.9463]
[1724730404602,0.0406031,158.38,158.37,7.79]
[1724730409208,0.0406031,158.38,158.37,11.57]
[1724730416323,0.0406031,158.38,158.37,14.65288811]
[1724730418920,0.0406031,158.38,158.37,11.57]
[1724730419219,0.0406031,158.38,158.37,14.6524545]
[1724730420321,0.0406031,158.38,158.37,11.57]
[1724730420525,0.0406031,158.38,158.37,14.65252269]
[1724730421214,0.0406031,158.38,158.37,11.57]
[1724730421413,0.0406031,158.38,158.37,14.6525001]
[1724730421823,0.0406031,158.38,158.37,11.57]
[1724730422016,0.0406031,158.38,158.37,14.65251539]
[1724730423411,3.1558,158.4,158.37,16.67264503]
[1724730423616,3.1558,158.4,158.39,7.79]
[1724730426614,3.1558,158.4,158.37,3.78]
[1724730426919,7.8366705,158.41,158.35,7.8344423]
[1724730427121,7.79,158.4,158.35,0.0444423]
[1724730427422,3.1565,158.36,158.35,0.0444423]
[1724730430927,0.04578741,158.37,158.35,7.8344423]
[1724730430928,3.20218741,158.37,158.35,7.8344423]
[1724730434517,3.1565,158.36,158.35,0.0444423]
[1724730440834,7.83578741,158.37,158.28,62.00960356]
[1724730441035,7.79,158.35,158.29,5.11163776]
[1724730441237,7.79,158.33,158.28,60.69230356]
[1724730441631,3.1579,158.3,158.28,60.69230356]
[1724730445036,3.20330595,158.31,158.29,7.79]
[1724730445338,0.04570595,158.31,158.29,7.79]
[1724730446242,3.20320595,158.31,158.29,7.79]
[1724730448031,3.1577,158.3,158.28,60.69230356]
[1724730459544,3.20330595,158.31,158.29,7.79]
[1724730460046,0.04570595,158.31,158.29,7.79]
[1724730460238,0.04570595,158.31,158.29,10.9479]
[1724730467345,0.04570595,158.31,158.3,3.1577]
[1724730468548,2.5526,158.38,158.31,3.1575]
[1724730468747,2.5526,158.38,158.33,7.79]
[1724730469253,3.1569,158.35,158.33,7.79]
[1724730470548,3.1569,158.35,158.32,7.83219486]
[1724730471259,3.157,158.34,158.32,7.83219486]
[1724730471451,3.157,158.34,158.32,0.04219486]
[1724730471849,3.1571,158.33,158.32,0.04219486]
[1724730478260,3.1569,158.34,158.32,7.83219486]
[1724730478553,0.04099696,158.36,158.32,7.83219486]
[1724730479452,3.19769696,158.36,158.32,10.98939486]
[1724730480357,3.19769696,158.36,158.34,7.79]
[1724730481355,3.19769696,158.36,158.35,7.79]
[1724730481356,0.04099696,158.36,158.35,7.79]
[1724730481754,0.04099696,158.36,158.35,10.9467]
[1724730486960,0.04099696,158.36,158.35,14.12636075]
[1724730488360,0.04099696,158.36,158.35,10.9467]
[1724730490259,0.04099696,158.36,158.34,1.2904]
[1724730490565,0.04099696,158.36,158.32,0.04219486]
[1724730490753,0.04099696,158.36,158.33,11.57]
[1724730490956,3.19759696,158.36,158.33,11.57]
[1724730491157,0.04099696,158.36,158.33,11.57]
[1724730491660,0.04099696,158.36,158.33,14.7271]
[1724730493763,3.19759696,158.36,158.33,11.57]
[1724730495967,0.04099696,158.36,158.33,14.7271]
[1724730496361,3.1569,158.35,158.33,3.78]
[1724730496762,3.1569,158.35,158.32,7.83219486]
[1724730497269,0.04099696,158.36,158.32,7.83219486]
[1724730497570,0.04099696,158.36,158.32,0.04219486]
[1724730497968,3.1568,158.35,158.32,0.04219486]
[1724730499069,0.04099696,158.36,158.32,0.04219486]
[1724730499971,3.1571,158.33,158.32,0.04219486]
[1724730507674,3.1576,158.31,158.28,3.158]
[1724730508671,3.20238428,158.31,158.28,3.20531331]
[1724730508867,3.20238428,158.31,158.28,0.04731331]
[1724730509673,3.1577,158.3,158.28,0.04731331]
[1724730511577,3.1577,158.3,158.29,7.79]
[1724730522283,3.1577,158.3,158.28,0.04731331]
[1724730522484,3.1577,158.3,158.28,7.83731331]
[1724730523984,3.1579,158.29,158.28,0.04731331]
[1724730537193,0.04478428,158.31,158.28,0.04731331]
[1724730537394,0.04478428,158.31,158.29,7.79]
[1724730537591,3.20238428,158.31,158.29,7.79]
[1724730538999,0.04478428,158.31,158.29,7.79]
[1724730539393,0.04478428,158.31,158.29,10.9478]
[1724730540089,0.04478428,158.31,158.29,7.79]
[1724730541889,0.04478428,158.31,158.3,7.79]
[1724730543303,0.04478428,158.31,158.3,10.9477]
[1724730544508,0.04478428,158.31,158.3,3.1577]
[1724730544706,0.04478428,158.31,158.3,10.9477]
[1724730551015,1.2085,158.38,158.3,7.79]
[1724730551321,1.2085,158.38,158.28,8.20046806]
[1724730551322,3.1567,158.36,158.33,7.79]
[1724730551906,3.1567,158.36,158.33,7.8355308]
[1724730552112,3.2035523,158.36,158.33,7.8355308]
[1724730555218,0.0468523,158.36,158.33,10.9925308]
[1724730555517,0.0468523,158.36,158.35,7.79]
[1724730557616,3.2033523,158.36,158.33,3.2025308]
[1724730557813,3.2033523,158.36,158.34,7.79]
[1724730559520,3.1567,158.35,158.34,7.79]
[1724730559719,3.1567,158.35,158.33,0.0455308]
[1724730559720,0.0468523,158.36,158.33,0.0455308]
[1724730560112,3.1567,158.35,158.33,0.0455308]
[1724730563423,3.1567,158.35,158.34,7.79]
[1724730565817,3.2034523,158.36,158.34,7.79]
[1724730566521,3.2034523,158.36,158.35,7.79]
[1724730567818,0.0468523,158.36,158.35,7.79]
[1724730568517,0.0468523,158.36,158.35,10.9467]
[1724730571516,0.0468523,158.36,158.35,7.79]
[1724730571721,0.0468523,158.36,158.34,14.7268]
[1724730572521,0.0468523,158.36,158.34,7.79]
[1724730576130,0.0468523,158.36,158.35,7.79]
[1724730585932,1.2297,158.4,158.35,10.9467]
[1724730586127,1.2297,158.4,158.38,7.79]
[1724730587440,3.156,158.39,158.38,7.79]
[1724730592239,1.2297,158.4,158.38,7.79]
[1724730592240,3.1558,158.4,158.38,7.79]
[1724730594436,0.04797794,158.41,158.39,7.79]
[1724730596347,0.04797794,158.41,158.39,10.9459]
[1724730610258,0.04797794,158.41,158.37,3.82260821]
[1724730610452,0.04797794,158.41,158.37,0.04260821]
[1724730611254,3.1559,158.4,158.37,0.04260821]
[1724730611454,7.79,158.38,158.37,0.04260821]
[1724730611653,10.8849046,158.38,158.28,4.31805475]
[1724730611850,3.1569,158.34,158.29,6.23255807]
[1724730612051,3.1569,158.34,158.29,10.9478]
[1724730612561,0.04738843,158.33,158.3,0.04448795]
[1724730612759,0.04738843,158.33,158.31,7.79]
[1724730613357,0.04738843,158.33,158.32,7.79]
[1724730615961,0.04738843,158.33,158.32,10.9473]
[1724730619150,0.04738843,158.33,158.31,10.9475]
[1724730619663,0.04738843,158.33,158.31,3.1575]
[1724730630967,0.04738843,158.33,158.32,3.1573]
[1724730631168,0.04738843,158.33,158.32,10.9473]
[1724730631581,3.1559,158.39,158.32,11.57]
[1724730631770,3.1559,158.39,158.36,7.79]
[1724730632473,3.20178111,158.39,158.36,7.83539744]
[1724730635377,3.20178111,158.39,158.36,0.04539744]
[1724730640081,3.20178111,158.39,158.36,3.20189744]
[1724730641884,3.20178111,158.39,158.36,10.99189744]
[1724730642686,0.04588111,158.39,158.36,10.99189744]
[1724730642986,0.04588111,158.39,158.38,7.79]
[1724730644283,0.04588111,158.39,158.38,10.9461]
[1724730649593,2.5299,158.45,158.4,3.1556]
[1724730649796,5.6847,158.45,158.42,7.79]
[1724730650390,5.73283211,158.45,158.42,7.83369795]
[1724730650795,3.20293211,158.45,158.42,7.83369795]
[1724730652887,3.20293211,158.45,158.44,7.79]
[1724730652888,0.04813211,158.45,158.44,7.79]
[1724730658491,0.04813211,158.45,158.43,10.945]
[1724730659109,0.04813211,158.45,158.44,3.1549]
[1724730659993,0.04813211,158.45,158.44,6.32483441]
[1724730661507,0.04813211,158.45,158.44,3.1549]
[1724730662003,0.04813211,158.45,158.43,11.55]
[1724730662004,0.04813211,158.45,158.43,14.7051]
[1724730663695,0.04813211,158.45,158.43,6.9151]
[1724730663901,0.04813211,158.45,158.43,14.7051]
[1724730664101,0.04813211,158.45,158.43,3.76]
[1724730664304,0.04813211,158.45,158.42,0.04369795]
[1724730665302,3.20303211,158.45,158.42,3.19899795]
[1724730666211,0.04813211,158.45,158.43,3.1549]
[1724730666409,0.04813211,158.45,158.44,7.79]
[1724730667002,0.04813211,158.45,158.44,10.9449]
[1724730669513,0.04813211,158.45,158.43,3.1551]
[1724730670307,0.04813211,158.45,158.44,3.1549]
[1724730670507,0.04813211,158.45,158.44,10.9449]
[1724730671309,0.04813211,158.45,158.44,7.79]
[1724730672419,0.04813211,158.45,158.42,7.83369795]
[1724730673418,0.04813211,158.45,158.43,3.1551]
[1724730679823,0.04813211,158.45,158.44,3.1549]
[1724730680414,0.04813211,158.45,158.44,10.9449]
[1724730689230,0.04813211,158.45,158.44,3.1549]
[1724730689730,0.04813211,158.45,158.44,6.9149]
[1724730690727,0.04813211,158.45,158.44,3.1549]
[1724730696534,0.04813211,158.45,158.41,1.07753676]
[1724730696727,0.04813211,158.45,158.44,7.79]
[1724730696932,0.04813211,158.45,158.44,10.92809984]
[1724730697929,0.04813211,158.45,158.44,14.08299984]
[1724730704741,0.04813211,158.45,158.43,0.04676896]
[1724730705444,0.04813211,158.45,158.43,3.20186896]
[1724730717553,0.04813211,158.45,158.44,10.9449]
[1724730718152,0.04813211,158.45,158.44,16.03644726]
[1724730719356,2.523,158.53,158.47,3.1542]
[1724730719560,10.313,158.53,158.47,10.9442]
[1724730720161,7.79,158.52,158.47,10.9442]
[1724730720359,2.523,158.53,158.47,10.9442]
[1724730720563,0.0405798,158.51,158.48,0.04797532]
[1724730721358,0.0405798,158.51,158.48,7.83797532]
[1724730722667,0.0405798,158.51,158.49,3.1538]
[1724730723057,0.0405798,158.51,158.5,7.79]
[1724730723862,0.0405798,158.51,158.5,10.9437]
[1724730724062,0.0405798,158.51,158.5,3.1537]
[1724730724262,0.0405798,158.51,158.49,3.76]
[1724730724464,0.0405798,158.51,158.48,3.20197532]
[1724730724465,7.8305798,158.51,158.48,0.04797532]
[1724730725067,0.0405798,158.51,158.48,0.04797532]
[1724730725368,0.0405798,158.51,158.49,7.79]
[1724730726273,0.0405798,158.51,158.49,10.9438]
[1724730736473,0.0405798,158.51,158.5,7.79]
[1724730737575,0.0405798,158.51,158.5,10.9437]
[1724730737786,7.79,158.6,158.5,9.80851745]
[1724730737981,7.79,158.59,158.53,7.79]
[1724730738173,7.79,158.59,158.53,3.76]
[1724730738380,3.1526,158.56,158.53,3.76]
[1724730738776,3.19551042,158.56,158.53,3.80649015]
[1724730739377,0.04291042,158.56,158.54,7.79]
[1724730740189,0.04291042,158.56,158.53,6.95959015]
[1724730740778,3.19551042,158.56,158.53,6.95959015]
[1724730744388,3.1528,158.55,158.53,3.80649015]
[1724730745287,3.19551042,158.56,158.54,7.79]
[1724730749089,3.1529,158.55,158.53,3.80649015]
[1724730750182,3.1529,158.54,158.53,3.80649015]
[1724730750996,3.1528,158.55,158.53,3.80649015]
[1724730754000,3.19551042,158.56,158.53,3.80649015]
[1724730757103,3.1528,158.55,158.53,3.80649015]
[1724730762297,3.1529,158.54,158.53,3.80649015]
[1724730762801,3.1528,158.55,158.53,3.80649015]
[1724730768201,3.1528,158.55,158.53,0.04649015]
[1724730769812,3.1529,158.54,158.53,0.04649015]
[1724730770014,7.79,158.54,158.43,11.83873672]
[1724730770307,3.11822558,158.55,158.43,11.83873672]
[1724730770308,7.79,158.52,158.46,7.79]
[1724730770707,3.1537,158.51,158.47,3.1543]
[1724730770906,0.0461084,158.51,158.47,0.04829094]
[1724730771312,3.1538,158.5,158.47,0.04829094]
[1724730772709,3.1538,158.5,158.47,7.83829094]
[1724730773410,3.1538,158.5,158.47,10.99259094]
[1724730776708,3.1538,158.5,158.47,3.20259094]
[1724730782715,3.1538,158.5,158.47,0.04829094]
[1724730783824,3.1541,158.48,158.47,0.04829094]
[1724730787817,0.0461084,158.51,158.47,0.04829094]
[1724730788418,3.1998084,158.51,158.48,7.79]
[1724730790717,0.0461084,158.51,158.5,7.79]
[1724730791017,0.0461084,158.51,158.5,10.9437]
[1724730791417,0.0461084,158.51,158.5,7.79]
[1724730792023,0.0461084,158.51,158.5,3.1537]
[1724730792224,0.0461084,158.51,158.5,7.79]
[1724730794420,0.0461084,158.51,158.48,1.266]
[1724730794621,0.0461084,158.51,158.47,0.04829094]
[1724730795022,0.0461084,158.51,158.47,3.20259094]
[1724730795427,3.1998084,158.51,158.47,3.20259094]
[1724730795729,3.1998084,158.51,158.48,10.9441]
[1724730799434,0.0461084,158.51,158.49,10.9439]
[1724730800920,0.0461084,158.51,158.47,0.04829094]
[1724730801132,3.1996084,158.51,158.48,10.9441]
[1724730805638,3.1996084,158.51,158.48,7.79]
[1724730810444,0.0461084,158.51,158.48,10.944]
[1724730814852,0.0461084,158.51,158.5,7.79]
[1724730816452,0.0461084,158.51,158.5,10.9437]
[1724730831256,0.0461084,158.51,158.47,0.04829094]
[1724730831460,0.0461084,158.51,158.49,7.79]